bitfinex/quotes_ETHUSD_20260226
["timestamp","ask_amount","ask_price","bid_price","bid_amount"]
[1772116846361,2.19475998,2068.8,2067.7,2.702539]
[1772116846760,0.001,2068.5,2067.6,2.461789]
[1772116847069,0.98632298,2068.5,2067.5,2.48316594]
[1772116847256,0.98632298,2068.5,2067.6,21.29976162]
[1772116847257,0.001,2068.5,2067.6,21.29976162]
[1772116847446,0.001,2068.5,2067.7,28.491813]
[1772116847642,0.001,2068.5,2067.7,9.562379]
[1772116847850,0.001,2068.5,2067.5,1.274]
[1772116848149,0.001,2068.5,2067.3,0.0011]
[1772116848335,0.98632298,2068.5,2067.3,0.0011]
[1772116848746,0.98632298,2068.5,2067.3,1.21039962]
[1772116848945,0.98632298,2068.5,2067.3,1.2103905]
[1772116849361,0.98632298,2068.5,2067.4,21.386252]
[1772116849665,0.98632298,2068.5,2067.4,7.481924]
[1772116849864,1.2086637,2068.4,2067.4,8.69111964]
[1772116850071,1.2086637,2068.4,2067.4,1.20919564]
[1772116850444,1.2086637,2068.4,2067.3,4.83821056]
[1772116850445,0.98532298,2068.3,2067.3,0.0011]
[1772116850660,0.98532298,2068.1,2067.0,0.0011]
[1772116851971,0.98532298,2068.1,2066.8,0.0011]
[1772116851972,0.98532298,2067.6,2066.8,0.0011]
[1772116852182,0.98532298,2067.6,2065.7,0.97460554]
[1772116852183,0.98532298,2067.4,2065.9,16.853685]
[1772116852363,0.98532298,2067.4,2065.9,12.417165]
[1772116852560,0.98532298,2067.3,2065.7,3.056657]
[1772116852784,0.98532298,2066.9,2065.5,9.715642]
[1772116853091,1.66,2066.8,2065.5,9.715642]
[1772116853265,1.66,2066.8,2065.5,2.57445]
[1772116853266,0.98532298,2066.7,2065.5,2.57445]
[1772116853472,0.98532298,2066.7,2065.2,21.042853]
[1772116853783,0.98532298,2066.7,2065.1,2.18517408]
[1772116853960,0.98532298,2066.5,2065.1,1.21056854]
[1772116855775,0.98532298,2066.4,2064.8,4.84407844]
[1772116855973,0.95479374,2065.8,2064.8,0.0011]
[1772116856187,2.86812633,2065.9,2064.8,0.0011]
[1772116856486,0.95479374,2065.8,2064.8,0.0011]
[1772116856695,0.95479374,2065.7,2064.8,0.0011]
[1772116858463,4.84077037,2065.8,2064.8,0.0011]
[1772116858663,1.21018491,2065.8,2064.8,0.0011]
[1772116859796,1.21018491,2065.8,2065.0,0.001]
[1772116860294,0.95479374,2065.7,2064.8,0.0011]
[1772116860892,1.21030209,2065.6,2064.8,0.0011]
[1772116861103,0.95479374,2065.5,2064.3,0.0011]
[1772116861270,0.95479374,2065.2,2064.3,0.0011]
[1772116861474,0.95479374,2065.0,2064.3,0.0011]
[1772116862084,0.95479374,2065.5,2064.3,0.0011]
[1772116862399,0.95479374,2065.3,2064.3,0.0011]
[1772116862603,0.95479374,2064.8,2064.0,0.0011]
[1772116862789,0.95479374,2064.4,2063.7,0.0011]
[1772116863179,1.21094696,2064.5,2063.7,0.0011]
[1772116863382,0.95479374,2064.8,2063.7,0.0011]
[1772116863688,0.18685624,2065.8,2064.2,2.49291017]
[1772116863689,0.95479374,2065.8,2064.2,2.49291017]
[1772116863888,0.95479374,2065.8,2064.1,2.52814722]
[1772116864091,0.95479374,2065.8,2063.9,1.20458779]
[1772116864290,1.655,2066.1,2064.5,1.74395486]
[1772116864470,1.655,2066.1,2064.9,0.18685624]
[1772116864675,2.86566871,2066.7,2065.2,2.67976641]
[1772116864872,2.86567235,2066.7,2065.6,1.20458779]
[1772116865088,1.656,2066.7,2065.5,1.21036068]
[1772116865299,1.656,2066.7,2065.6,1.20458779]
[1772116865499,1.20945741,2067.1,2065.6,1.20458779]
[1772116865927,1.20945741,2067.1,2065.6,1.01773155]
[1772116866094,1.657,2067.3,2065.9,1.01773155]
[1772116866298,1.2093732,2067.2,2065.9,1.01773155]
[1772116866694,0.95479374,2067.1,2065.5,1.21036068]
[1772116866890,1.20948234,2067.0,2065.5,1.21036068]
[1772116867313,1.20948234,2067.0,2065.6,0.18685624]
[1772116868095,1.20948234,2067.0,2065.5,1.21036068]
[1772116868403,1.20948234,2067.0,2064.7,1.45251281]
[1772116868404,0.95479374,2066.7,2064.9,5.94226656]
[1772116868602,0.95479374,2066.5,2065.0,1.21065375]
[1772116868802,0.95479374,2066.5,2064.9,5.86034656]
[1772116868803,0.95479374,2066.3,2064.9,1.21066923]
[1772116869322,0.95479374,2066.1,2064.6,1.2108883]
[1772116870798,6.4953341,2066.6,2064.8,1.47517862]
[1772116870799,0.95479374,2066.6,2064.8,1.47517862]
[1772116871000,0.95479374,2066.4,2064.7,0.08192]
[1772116871330,0.95479374,2066.4,2064.6,1.2108883]
[1772116871513,2.42997236,2065.8,2064.4,1.21096553]
[1772116871716,1.655,2065.7,2064.4,1.21096553]
[1772116872631,1.655,2065.7,2064.4,2.22869708]
[1772116872803,1.21030209,2065.6,2064.4,2.22869708]
[1772116873407,1.21030209,2065.6,2064.2,1.21218957]
[1772116873408,0.95479374,2065.5,2064.2,1.21218957]
[1772116873608,0.95479374,2065.5,2064.2,1.21222006]
[1772116874336,0.95479374,2065.5,2064.2,0.0011]
[1772116874856,1.21030209,2065.6,2064.2,0.0011]
[1772116874857,0.95479374,2065.2,2064.2,0.0011]
[1772116875063,2.16538886,2065.1,2064.2,0.0011]
[1772116875559,0.95479374,2064.8,2064.0,0.0011]
[1772116876353,1.21059512,2065.1,2064.0,0.0011]
[1772116876562,2.86359512,2065.1,2064.0,0.0011]
[1772116878129,2.86359512,2065.1,2063.7,0.0011]
[1772116878130,0.95479374,2064.9,2063.7,0.0011]
[1772116878733,2.86359512,2065.1,2063.5,0.0075268]
[1772116878734,0.95479374,2064.5,2063.5,0.0075268]
[1772116878936,1.21106428,2064.3,2063.5,0.0075268]
[1772116879136,1.21106428,2064.3,2063.5,1e-08]
[1772116879137,2.16585802,2064.3,2063.5,1e-08]
[1772116879320,1.21106428,2064.3,2063.5,1e-08]
[1772116879720,2.42997236,2064.2,2063.0,0.1627804]
[1772116879955,2.42997236,2064.2,2063.0,1.374578]
[1772116879956,0.95479374,2064.2,2063.0,1.374578]
[1772116880453,1.21106428,2064.3,2063.0,1.374578]
[1772116881053,1.652,2064.3,2063.0,2.39230955]
[1772116881882,1.21071238,2064.9,2063.3,1.20458779]
[1772116882049,3.81650612,2064.9,2063.3,1.01773155]
[1772116882250,2.86171238,2064.9,2063.4,1.01773155]
[1772116882446,2.86171238,2064.9,2063.6,1.01773155]
[1772116882967,2.86171238,2064.9,2063.7,1.21141638]
[1772116883145,2.86171238,2064.9,2063.7,2.22914793]
[1772116883849,2.86271238,2064.9,2063.7,2.22914793]
[1772116884178,3.81750612,2064.9,2063.6,1.21144563]
[1772116884349,2.86271238,2064.9,2063.4,1.01773155]
[1772116885057,0.95479374,2064.8,2063.3,4.84648028]
[1772116885556,0.95479374,2064.8,2063.2,1.21280838]
[1772116885950,0.95479374,2064.8,2063.2,2.17711996]
[1772116886483,2.86271238,2064.9,2063.5,0.96431158]
[1772116886673,2.86272883,2064.9,2063.6,1.15116782]
[1772116886855,2.86272883,2064.9,2063.8,0.96431158]
[1772116887057,2.86272883,2064.9,2063.9,1.21129899]
[1772116887258,2.86272883,2064.9,2063.8,5.80954996]
[1772116887259,1.05135187,2064.6,2063.2,0.0011]
[1772116887489,1.05135187,2064.6,2063.2,1.21280778]
[1772116887778,1.05135187,2064.6,2063.2,1.21280761]
[1772116888162,1.05135187,2064.6,2063.2,0.0011]
[1772116888667,1.05135187,2064.6,2063.2,2.17710541]
[1772116888965,1.21094696,2064.5,2063.2,0.96541158]
[1772116889190,1.21094696,2064.5,2063.2,1.2127886]
[1772116889366,1.05135187,2064.1,2063.2,0.0011]
[1772116889589,1.647,2064.0,2063.2,0.0011]
[1772116889792,9.94478784,2064.8,2063.3,0.96431158]
[1772116889993,4.84378784,2064.8,2063.2,1.21277334]
[1772116890363,5.89613971,2064.9,2063.2,1.21277334]
[1772116890566,1.21077101,2064.8,2063.3,0.96431158]
[1772116890770,5.89534468,2064.9,2063.2,2.68795196]
[1772116890771,0.001,2064.9,2063.6,2.4394902]
[1772116891006,0.001,2064.9,2063.8,1.21135768]
[1772116891170,0.001,2064.9,2063.8,2.17566926]
[1772116892071,0.001,2064.9,2063.9,0.96431158]
[1772116893069,0.001,2064.9,2064.1,2.1754932]
[1772116893894,0.001,2064.9,2063.7,1.21141638]
[1772116895602,1.05235187,2064.9,2063.7,1.21141638]
[1772116895782,1.05235187,2064.9,2063.3,4.84566555]
[1772116895783,1.05235187,2064.9,2063.3,1.21165123]
[1772116896115,1.05235187,2064.9,2063.5,0.0011]
[1772116896116,1.05135187,2064.5,2063.5,0.0011]
[1772116896280,1.646,2064.4,2063.5,0.0011]
[1772116896997,2.69735187,2064.4,2063.5,0.0011]
[1772116897178,1.21106428,2064.3,2063.5,0.0011]
[1772116897385,1.21082966,2064.7,2063.5,0.0011]
[1772116897683,1.645,2064.6,2063.5,0.0011]
[1772116897882,1.02490709,2064.5,2063.5,0.0011]
[1772116898105,1.645,2064.6,2063.5,0.0011]
[1772116899326,1.02490709,2064.3,2063.5,0.0011]
[1772116899798,1.21100561,2064.4,2063.5,0.0011]
[1772116900589,1.02490709,2064.3,2063.5,0.0011]
[1772116900795,1.21100561,2064.4,2063.5,0.0011]
[1772116901101,1.02490709,2064.3,2063.0,1e-08]
[1772116901291,1.02490709,2064.1,2063.0,1e-08]
[1772116901607,1.02490709,2064.1,2062.7,0.0011]
[1772116901608,1.02490709,2063.7,2062.7,0.0011]
[1772116902791,2.55978502,2063.8,2062.7,0.0011]
[1772116902987,1.02490709,2063.7,2062.7,0.0011]
[1772116903203,1.02490709,2063.2,2061.5,1.21270919]
[1772116903402,2.66790709,2063.1,2061.5,1.21270919]
[1772116903600,2.66790709,2063.1,2061.6,1.03249294]
[1772116904122,4.84660495,2063.5,2062.2,1.03249294]
[1772116904123,1.21157204,2063.5,2062.2,1.03249294]
[1772116904328,6.48894845,2063.6,2062.2,1.03249294]
[1772116904329,2.85450214,2063.6,2062.2,1.03249294]
[1772116904909,2.85448136,2063.6,2062.3,1.21934918]
[1772116905226,2.85448136,2063.6,2062.4,1.21217998]
[1772116906210,2.85447975,2063.6,2062.5,1.03249294]
[1772116906723,1.643,2063.6,2062.5,1.03249294]
[1772116906939,1.643,2063.6,2062.7,1.03249294]
[1772116907127,1.643,2063.6,2062.4,3.28399298]
[1772116907128,3.87940743,2063.6,2062.4,1.21217998]
[1772116907430,2.85450034,2063.6,2062.4,1.03249294]
[1772116907630,3.87940743,2063.6,2062.2,4.84871993]
[1772116907801,3.87940743,2063.6,2062.2,5.88121287]
[1772116908125,2.85450034,2063.6,2062.3,1.03249294]
[1772116908301,2.8544787,2063.6,2062.3,1.03249294]
[1772116908501,2.85447598,2063.6,2062.4,1.21934918]
[1772116909102,1.643,2063.6,2062.4,1.21934918]
[1772116909304,2.85448701,2063.6,2062.6,1.03249294]
[1772116909504,1.643,2063.6,2062.6,1.03249294]
[1772116909838,2.85311072,2064.3,2062.7,1.21934918]
[1772116910058,2.85311072,2064.3,2062.9,1.21934918]
[1772116910203,0.001,2064.7,2062.9,1.21934918]
[1772116910538,0.001,2064.7,2063.8,1.21934918]
[1772116910754,0.001,2064.9,2064.1,1.21934918]
[1772116910959,2.071813,2066.2,2064.0,2.70939225]
[1772116910960,0.001,2065.9,2064.5,1.21934918]
[1772116911261,0.001,2065.9,2064.9,1.21071238]
[1772116911417,0.001,2065.9,2065.0,1.21934918]
[1772116912224,0.001,2065.9,2064.7,4.84323518]
[1772116912442,0.001,2065.9,2064.7,5.87572812]
[1772116912669,1.641,2065.9,2064.5,1.21094696]
[1772116913328,1.21018491,2065.8,2064.5,1.21934918]
[1772116913517,1.641,2065.9,2065.2,1.03249294]
[1772116913518,0.001,2065.9,2065.2,1.03249294]
[1772116913721,0.001,2065.9,2065.2,2.29049294]
[1772116914321,1.21113631,2065.9,2064.7,1.03249294]
[1772116914550,1.21113631,2065.9,2064.4,6.10194071]
[1772116914858,2.2360434,2065.9,2064.4,2.46900561]
[1772116915053,1.02490709,2065.8,2064.4,2.46900561]
[1772116915222,1.21113631,2065.9,2064.5,1.03249294]
[1772116915549,0.001,2065.9,2064.6,1.2108883]
[1772116915845,0.001,2065.9,2064.6,2.24338124]
[1772116916658,1.07015068,2065.9,2064.6,1.2108883]
[1772116917021,1.07015068,2065.9,2064.4,1.258]
[1772116917022,1.07015068,2065.9,2064.3,1.21106428]
[1772116917221,0.001,2065.9,2064.4,0.98162408]
[1772116917565,0.001,2065.9,2064.6,1.16848032]
[1772116917724,0.001,2065.9,2064.7,2.23862408]
[1772116918146,0.001,2065.9,2064.8,1.16848032]
[1772116918361,1.637,2066.8,2065.4,1.16848032]
[1772116918548,2.84660904,2066.8,2065.5,2.23862408]
[1772116918754,1.06915068,2066.7,2065.2,0.18685624]
[1772116919070,2.84660904,2066.8,2065.2,0.18685624]
[1772116919071,2.84660904,2066.8,2065.2,1.16848032]
[1772116919440,1.06915068,2066.7,2065.3,1.21047789]
[1772116919964,1.06915068,2066.7,2065.3,2.19210197]
[1772116920268,2.84661172,2066.8,2065.4,1.16848032]
[1772116920463,0.001,2065.7,2065.4,1.16848032]
[1772116920763,2.84662395,2066.8,2065.4,1.16848032]
[1772116920970,2.54100555,2067.4,2065.9,0.18685624]
[1772116921173,1.6387979,2067.7,2066.2,1.16848032]
[1772116921174,2.84788708,2067.7,2066.2,1.16848032]
[1772116921342,2.84788708,2067.7,2066.3,1.20989207]
[1772116921542,1.06915068,2067.6,2066.3,1.20989207]
[1772116921739,1.06915068,2067.6,2066.1,1.21000919]
[1772116922278,1.06915068,2067.6,2065.9,5.02689302]
[1772116922279,1.06915068,2067.5,2065.9,0.98162408]
[1772116922577,1.06915068,2067.2,2065.4,1.21038759]
[1772116922866,1.06915068,2067.2,2065.2,2.46650056]
[1772116923068,1.06915068,2067.0,2065.2,2.46650056]
[1772116923370,1.06915068,2066.8,2065.2,2.46650056]
[1772116923664,1.06915068,2066.8,2065.5,1.16848032]
[1772116923665,1.2096422,2066.8,2065.5,1.16848032]
[1772116923886,1.2096422,2066.8,2065.0,4.92406603]
[1772116923887,1.06915068,2066.7,2065.0,1.21062008]
[1772116924238,1.06915068,2066.7,2065.0,2.19224416]
[1772116924439,1.06915068,2066.7,2065.1,0.18685624]
[1772116924691,1.06915068,2066.7,2065.0,1.21062008]
[1772116924857,1.06915068,2066.7,2065.1,1.16848032]
[1772116925663,1.06915068,2066.5,2065.2,1.2105365]
[1772116925872,1.06915068,2066.4,2064.6,4.84345617]
[1772116926483,1.06915068,2066.4,2064.4,6.09773771]
[1772116926484,1.06915068,2066.0,2064.4,1.254]
[1772116926688,1.06915068,2065.8,2064.4,2.46500482]
[1772116926995,1.06915068,2065.8,2064.1,4.84449568]
[1772116926996,1.06915068,2065.8,2064.1,1.2111575]
[1772116927174,1.06915068,2065.6,2063.9,0.98162408]
[1772116927471,1.06915068,2065.2,2063.5,1.21150061]
[1772116927700,1.06915068,2065.0,2063.4,2.19317178]
[1772116928051,1.06915068,2065.0,2063.5,0.98162408]
[1772116929552,1.21071238,2064.9,2063.6,1.21147509]
[1772116929757,6.91419351,2065.3,2063.6,1.21147509]
[1772116929758,1.21041928,2065.4,2063.9,0.98162408]
[1772116929983,1.21041928,2065.4,2064.0,0.18685624]
[1772116930281,6.4687604,2065.8,2064.2,0.18685624]
[1772116930282,4.84111064,2065.7,2064.2,0.18685624]
[1772116930584,4.84111064,2065.7,2064.2,0.98162408]
[1772116930750,1.628,2065.8,2064.3,1.16848032]
[1772116930953,2.83819081,2065.8,2064.3,1.16848032]
[1772116931687,1.21003688,2066.1,2064.5,1.16848032]
[1772116931854,1.21003688,2066.1,2064.5,0.98162408]
[1772116932054,1.06915068,2066.0,2064.5,0.98162408]
[1772116932351,1.06915068,2066.0,2064.6,0.18685624]
[1772116932563,1.20983352,2066.4,2065.0,1.16848032]
[1772116932784,2.83780095,2066.5,2065.2,0.98162408]
[1772116933181,2.83780095,2066.5,2065.0,1.43885624]
[1772116933182,1.628,2066.5,2065.3,1.16848032]
[1772116933385,1.628,2066.5,2065.4,0.98162408]
[1772116933696,1.06915068,2067.0,2065.5,1.21036068]
[1772116933856,1.20948234,2067.0,2065.6,1.16848032]
[1772116934055,2.8404701,2067.1,2065.6,1.16848032]
[1772116934256,1.06915068,2067.0,2065.5,1.21036068]
[1772116934680,2.8404701,2067.1,2065.6,1.16848032]
[1772116935080,5.907846,2067.4,2066.3,0.98162408]
[1772116935081,1.21028236,2067.4,2066.3,0.98162408]
[1772116935288,1.21028236,2067.4,2066.1,2.62893123]
[1772116935491,0.0037979,2067.7,2066.6,0.98162408]
[1772116935687,0.0037979,2067.7,2066.9,1.20954085]
[1772116935893,0.0037979,2067.7,2066.4,1.20983352]
[1772116936959,0.0037979,2067.7,2066.2,6.28019034]
[1772116936960,1.07294858,2067.7,2066.2,1.20994844]
[1772116937256,1.06915068,2067.6,2065.9,1.21012633]
[1772116937457,1.63,2067.5,2066.1,1.16848032]
[1772116937668,2.54480345,2067.7,2066.1,1.16848032]
[1772116937669,0.0037979,2067.7,2066.1,1.16848032]
[1772116937872,0.0037979,2067.7,2066.4,1.16848032]
[1772116938295,0.002,2068.3,2066.8,1.16848032]
[1772116938296,1.20881338,2068.2,2066.8,1.16848032]
[1772116938464,1.20881338,2068.2,2066.9,0.98162408]
[1772116938660,1.20881338,2068.2,2066.8,1.253]
[1772116938977,1.20881338,2068.2,2066.5,0.18685624]
[1772116939182,1.06915068,2068.1,2066.4,2.23462408]
[1772116939366,1.631,2068.0,2066.4,2.23462408]
[1772116939571,1.631,2068.0,2066.5,0.18685624]
[1772116939766,1.06915068,2067.8,2066.2,1.20995063]
[1772116939991,1.06915068,2067.8,2066.3,0.98162408]
[1772116940656,1.06915068,2067.8,2066.2,1.20995063]
[1772116940657,1.06915068,2067.7,2066.0,1.21006776]
[1772116941090,1.06915068,2067.7,2066.0,2.19169184]
[1772116941386,1.06915068,2067.7,2066.2,1.16848032]
[1772116941792,1.06915068,2067.7,2066.3,1.20989207]
[1772116941793,1.20913136,2067.6,2066.3,1.20989207]
[1772116942165,2.27828204,2067.6,2066.3,1.20989207]
[1772116942490,1.06915068,2067.5,2066.0,1.21006776]
[1772116942665,1.20913136,2067.6,2066.1,0.98162408]
[1772116943268,1.20913136,2067.6,2066.2,0.18685624]
[1772116943679,1.20913136,2067.6,2066.3,0.98162408]
[1772116943863,4.83652544,2067.7,2066.4,1.39668976]
[1772116944059,4.83586191,2067.9,2066.6,0.18685624]
[1772116944701,1.631,2068.0,2066.6,2.41648032]
[1772116944902,1.631,2068.0,2066.8,0.18685624]
[1772116945078,1.20882704,2068.2,2066.9,1.16848032]
[1772116945274,1.20882704,2068.2,2066.7,0.18685624]
[1772116945473,2.27797772,2068.2,2066.6,0.18685624]
[1772116945674,2.27797772,2068.2,2066.5,0.98162408]
[1772116945981,2.27797772,2068.2,2066.4,1.20983352]
[1772116945982,2.25450811,2068.0,2066.4,1.20983352]
[1772116946185,1.04561063,2067.7,2066.2,4.8397181]
[1772116946392,1.624,2067.6,2066.2,4.8397181]
[1772116946704,1.04561063,2067.5,2066.1,0.0011]
[1772116947215,1.04561063,2067.5,2066.1,1.21110807]
[1772116947376,1.04561063,2067.5,2066.1,0.0011]
[1772116947709,1.04561063,2067.5,2066.1,1.21110398]
[1772116947919,0.001,2067.7,2066.2,1.23705255]
[1772116948202,0.001,2067.7,2066.5,1.23705255]
[1772116948203,1.21011099,2067.7,2066.5,1.23705255]
[1772116948703,1.21009172,2067.7,2066.5,1.23705255]
[1772116948872,0.001,2067.7,2066.5,1.23705255]
[1772116949598,1.21008344,2067.7,2066.5,1.23705255]
[1772116949783,0.001,2067.7,2066.8,1.20959938]
[1772116950386,0.001,2067.7,2066.6,1.20971644]
[1772116950582,6.46112232,2068.3,2066.7,1.23705255]
[1772116950583,0.002,2068.3,2066.7,1.23705255]
[1772116950831,0.002,2068.3,2067.2,1.05019631]
[1772116950977,0.002,2068.3,2067.4,0.18685624]
[1772116951181,0.002,2068.3,2067.4,1.23705255]
[1772116951679,0.002,2068.3,2067.6,1.23705255]
[1772116951888,0.002,2068.3,2067.7,1.20907288]
[1772116953597,0.002,2068.3,2067.3,1.20930682]
[1772116954374,1.04761063,2068.3,2067.0,1.20948234]
[1772116954808,0.002,2068.3,2067.1,1.23705255]
[1772116955305,0.002,2068.3,2067.0,1.20948234]
[1772116955504,0.002,2068.3,2066.6,7.36375124]
[1772116955505,1.04761063,2068.3,2066.7,1.2096579]
[1772116955678,1.04761063,2068.3,2066.7,2.25985421]
[1772116955894,2.25439121,2068.2,2066.7,2.25985421]
[1772116956093,1.04561063,2068.1,2066.7,1.2096579]
[1772116956337,1.04561063,2068.0,2066.6,2.45368702]
[1772116956519,3.08862557,2068.1,2066.4,1.20983352]
[1772116956520,3.64230639,2067.9,2066.4,1.20983352]
[1772116956707,1.04561063,2067.8,2066.2,1.20990539]
[1772116957525,1.04561063,2067.7,2066.2,1.20990539]
[1772116957733,1.04561063,2067.7,2066.1,0.0011]
[1772116957918,2.24148614,2067.6,2066.1,0.0011]
[1772116958227,4.83629153,2067.8,2066.4,1.00638292]
[1772116958530,4.83629153,2067.8,2066.3,1.47562557]
[1772116958531,1.20901441,2067.8,2066.5,2.43623916]
[1772116959201,1.20901441,2067.8,2066.1,0.0011]
[1772116959202,1.03235478,2067.6,2066.1,0.0011]
[1772116960118,2.24154462,2067.5,2066.1,1.21110919]
[1772116960826,1.20918984,2067.5,2066.3,0.001]
[1772116961028,5.86841242,2067.9,2066.5,1.19323916]
[1772116961217,1.20901441,2067.8,2066.5,1.19323916]
[1772116961419,1.03235478,2067.7,2066.4,1.242]
[1772116961731,1.20901441,2067.8,2066.4,1.242]
[1772116961902,1.20901441,2067.8,2066.5,0.18685624]
[1772116962231,1.20901441,2067.8,2066.6,2.21609936]
[1772116962400,4.83565031,2068.0,2066.6,2.21609936]
[1772116962601,1.03235478,2067.9,2066.6,1.20971644]
[1772116963030,1.03235478,2067.9,2066.4,1.20983352]
[1772116963213,1.03235478,2067.7,2066.4,1.20983352]
[1772116963623,4.83565031,2068.0,2066.8,1.47562557]
[1772116963624,1.20889748,2068.0,2066.8,1.47562557]
[1772116963834,0.002,2068.1,2066.9,1.19323916]
[1772116964041,0.002,2068.1,2067.3,1.19323916]
[1772116964242,0.002,2068.3,2067.7,1.47562557]
[1772116964417,0.002,2068.3,2067.8,0.18685624]
[1772116964736,0.002,2068.3,2067.6,0.18685624]
[1772116965329,0.002,2068.3,2067.4,2.45024833]
[1772116966337,0.002,2068.3,2067.6,1.19323916]
[1772116968751,0.002,2068.3,2067.2,4.83744521]
[1772116968950,0.002,2068.3,2067.2,5.84382813]
[1772116969250,0.002,2068.3,2067.3,1.00638292]
[1772116969445,0.002,2068.3,2067.2,4.83744521]
[1772116969650,1.03435478,2068.3,2067.0,1.20942383]
[1772116970341,1.03435478,2068.3,2066.8,2.44956172]
[1772116970548,1.03435478,2068.3,2066.7,1.2096154]
[1772116970549,1.03235478,2068.1,2066.7,1.2096154]
[1772116970846,1.20878058,2068.2,2067.0,1.47562557]
[1772116971250,2.24113536,2068.2,2066.7,1.00638292]
[1772116971449,1.03235478,2068.1,2066.4,4.92120856]
[1772116971644,1.03235478,2068.1,2066.4,4.83928856]
[1772116972458,1.03235478,2068.1,2066.5,0.18685624]
[1772116972659,1.03235478,2067.8,2066.4,4.83928856]
[1772116972964,1.03235478,2067.8,2066.4,1.20983352]
[1772116973167,1.03235478,2067.8,2066.3,2.45184515]
[1772116973474,1.03235478,2067.8,2066.3,0.001]
[1772116973673,1.03235478,2067.6,2066.3,0.001]
[1772116973970,1.03235478,2067.4,2066.3,0.001]
[1772116974770,2.2416616,2067.3,2066.3,0.001]
[1772116976076,0.98948624,2067.2,2066.3,0.001]
[1772116976569,0.98948624,2067.2,2066.1,0.0011]
[1772116976770,0.98948624,2066.9,2066.1,0.0011]
[1772116976977,1.47562557,2067.0,2066.1,0.0011]
[1772116976978,2.58948624,2066.8,2066.1,0.0011]
[1772116977153,2.58948624,2066.8,2065.9,0.0011]
[1772116977877,0.98948624,2066.7,2065.1,1.21055028]
[1772116978242,0.98948624,2066.7,2064.9,1.21071238]
[1772116978494,0.98948624,2066.4,2064.9,1.21071238]
[1772116978664,1.20989207,2066.3,2064.9,1.21071238]
[1772116979075,0.98948624,2066.2,2064.9,1.21071238]
[1772116979992,1.20989207,2066.3,2065.0,0.18685624]
[1772116980196,3.07562557,2066.8,2065.0,0.18685624]
[1772116980197,7.30324283,2067.2,2065.3,1.21924496]
[1772116980363,6.43692936,2067.1,2065.6,2.50801429]
[1772116980768,6.43692936,2067.1,2065.8,1.21018491]
[1772116981094,1.599,2067.1,2065.9,0.18685624]
[1772116981298,1.599,2067.1,2065.8,1.21018491]
[1772116981299,3.79791381,2067.1,2065.8,1.21018491]
[1772116981499,3.79791381,2067.1,2065.6,1.03238872]
[1772116981701,3.79791381,2067.1,2065.2,1.03238872]
[1772116981702,0.98948624,2066.8,2065.2,1.03238872]
[1772116981903,0.98948624,2066.8,2064.1,2.62893123]
[1772116981904,0.98948624,2066.0,2064.2,2.24351167]
[1772116982213,4.28569995,2065.9,2064.2,2.24351167]
[1772116982387,0.98948624,2066.1,2064.3,1.03238872]
[1772116982584,5.101,2066.8,2064.9,1.47562557]
[1772116982585,1.599,2066.2,2064.9,1.47562557]
[1772116982785,1.21000919,2066.1,2064.8,1.39762725]
[1772116983002,2.80895149,2066.2,2064.8,2.43001597]
[1772116983173,2.80895149,2066.2,2065.0,0.18685624]
[1772116983372,1.599,2066.2,2065.0,0.18685624]
[1772116983572,2.80896722,2066.2,2065.0,1.66248181]
[1772116983796,2.80896722,2066.2,2065.0,0.18685624]
[1772116984004,1.599,2066.2,2065.0,1.21924496]
[1772116984171,1.598,2066.8,2065.2,1.21924496]
[1772116984594,1.598,2066.8,2065.6,1.21924496]
[1772116984904,0.98948624,2067.6,2066.1,0.18685624]
[1772116984905,1.598,2067.4,2066.1,0.18685624]
[1772116985075,1.598,2067.4,2066.1,1.21924496]
[1772116985271,4.83639488,2067.7,2066.0,1.21006776]
[1772116985272,6.43267147,2068.0,2066.4,1.21924496]
[1772116985672,7.42215771,2068.0,2066.4,1.21924496]
[1772116986097,2.80589748,2068.0,2066.4,1.21924496]
[1772116986292,1.597,2068.0,2066.7,0.18685624]
[1772116986498,1.21072248,2068.3,2067.1,1.21924496]
[1772116986891,0.002,2068.3,2067.1,1.20938273]
[1772116987710,1.47762557,2068.3,2066.8,0.18685624]
[1772116988042,1.47762557,2068.3,2066.7,1.2096579]
[1772116988043,2.46711181,2068.3,2066.7,1.2096579]
[1772116988343,0.002,2068.3,2066.8,1.21924496]
[1772116988508,0.002,2068.3,2067.1,0.18685624]
[1772116988699,0.002,2068.3,2067.1,1.21924496]
[1772116989325,0.002,2068.3,2067.3,2.69487053]
[1772116989509,0.002,2068.3,2067.4,1.03238872]
[1772116990239,0.001,2067.8,2067.4,1.03238872]
[1772116990798,0.002,2068.3,2067.4,1.03238872]
[1772116991010,0.002,2068.3,2067.5,0.18685624]
[1772116991426,0.002,2068.3,2067.6,1.20913136]
[1772116991737,0.002,2068.3,2067.0,1.20948234]
[1772116991903,0.002,2068.3,2067.2,1.03238872]
[1772116992105,0.002,2068.3,2066.9,1.20953144]
[1772116992727,0.99148624,2068.3,2066.7,2.44361257]
[1772116993232,0.99148624,2068.3,2066.7,1.20961257]
[1772116993447,0.99148624,2068.3,2066.3,1.47562557]
[1772116993448,1.20878058,2068.2,2066.4,2.32414224]
[1772116993949,0.98948624,2068.0,2066.4,1.20983352]
[1772116994664,0.98948624,2068.0,2066.2,1.20992119]
[1772116994949,0.98948624,2067.6,2065.7,4.84089889]
[1772116995142,0.98948624,2067.3,2065.7,4.84089889]
[1772116995452,1.20936532,2067.2,2065.9,1.21012633]
[1772116996056,1.20936532,2067.2,2065.3,1.21047789]
[1772116996057,0.98948624,2067.1,2065.3,1.21047789]
[1772116996256,0.98948624,2067.1,2065.4,0.18685624]
[1772116996431,0.98948624,2067.1,2065.3,1.21047789]
[1772116996839,0.98948624,2067.1,2065.4,2.50801429]
[1772116997569,1.20948234,2067.0,2065.5,1.21036068]
[1772116997755,1.20948234,2067.0,2065.8,1.47562557]
[1772116997938,1.20948234,2067.0,2065.8,2.50801429]
[1772116998129,0.98948624,2066.9,2065.5,1.21036068]
[1772116998851,0.98948624,2066.9,2065.4,1.21037754]
[1772116999025,0.98948624,2066.7,2064.9,4.84238051]
[1772116999230,0.98948624,2066.7,2065.0,1.47562557]
[1772116999535,2.19926122,2066.5,2065.0,4.84238051]
[1772116999837,0.98948624,2066.4,2064.8,4.84292851]
[1772117000158,0.98948624,2066.4,2064.9,0.18685624]
[1772117000374,0.98948624,2066.4,2064.8,4.84292851]
[1772117001175,1.20977498,2066.5,2064.9,1.21924496]
[1772117001643,1.20977498,2066.5,2065.3,1.21047789]
[1772117002139,2.79673651,2066.6,2065.3,2.24286661]
[1772117002344,1.587,2066.6,2065.5,1.47562557]